fUSD/lending_fUSD_20240319
["ID","MTS","AMOUNT","RATE_DAILY","PERIOD"]
[319613872,1710889874204,-430.58310742,0.00031506,2]
[319613873,1710889874217,-313.60523093,0.00031506,2]
[319613874,1710889874227,-500.0,0.00031506,2]
[319613875,1710889874237,-500.0,0.00031506,2]
[319613876,1710889874246,-500.0,0.00031506,2]
[319613877,1710889874256,-256.41016423,0.00031506,2]
[319613878,1710889874265,-625.35,0.00031506,2]
[319613879,1710889874275,-500.0,0.00031506,2]
[319613880,1710889874284,-2737.91,0.00031506,2]
[319613881,1710889874294,-500.0,0.00031506,2]
[319613882,1710889874304,-279.17871742,0.00031506,2]
[319613883,1710889874313,-564.63080509,0.00031506,2]
[319613884,1710889874323,-613.80450598,0.00031506,2]
[319613885,1710889874333,-727.13,0.00031506,2]
[319613886,1710889874342,-500.0,0.00031506,2]
[319613887,1710889874352,-500.0,0.00031506,2]
[319613888,1710889874361,-500.0,0.00031506,2]
[319613889,1710889874371,-214.81602505,0.00031506,2]
[319613890,1710889874381,-627.84252548,0.00031506,2]
[319613891,1710889874391,-318.9663816,0.00031506,2]
[319613892,1710889874401,-500.0,0.00031506,2]
[319613893,1710889874410,-492.46,0.00031506,2]
[319613894,1710889874419,-500.0,0.00031506,2]
[319613895,1710889874429,-618.90521892,0.00031506,2]
[319613896,1710889874438,-437.83244917,0.00031506,2]
[319613897,1710889874448,-969.84,0.00031506,2]
[319613898,1710889874462,-500.0,0.00031506,2]
[319613899,1710889874472,-500.0,0.00031506,2]
[319613900,1710889874482,-1547.97,0.00031506,2]
[319613901,1710889874492,-500.0,0.00031506,2]
[319613902,1710889874503,-500.0,0.00031506,2]
[319613903,1710889874513,-531.67074433,0.00031506,2]
[319613904,1710889874523,-269.01677683,0.00031506,2]
[319613905,1710889874533,-500.0,0.00031506,2]
[319613906,1710889874542,-178.50789673,0.00031506,2]
[319613907,1710889874551,-500.0,0.00031506,2]
[319613908,1710889874561,-500.0,0.00031506,2]
[319613909,1710889874571,-500.0,0.00031506,2]
[319613910,1710889874581,-500.0,0.00031506,2]
[319613911,1710889874591,-500.0,0.00031506,2]
[319613912,1710889874602,-500.0,0.00031506,2]
[319613913,1710889874613,-500.0,0.00031506,2]
[319613914,1710889874624,-359.29783616,0.00031506,2]
[319613915,1710889874634,-491.23533834,0.00031506,2]
[319613916,1710889874644,-500.0,0.00031506,2]
[319613917,1710889874654,-500.0,0.00031506,2]
[319613918,1710889874663,-150.0,0.00031506,2]
[319613919,1710889874673,-771.88,0.00031506,2]
[319613920,1710889874683,-500.0,0.00031506,2]
[319613921,1710889874693,-500.0,0.00031506,2]
[319613922,1710889874702,-500.0,0.00031506,2]
[319613923,1710889874716,-500.0,0.00031506,2]
[319613924,1710889874725,-500.0,0.00031506,2]
[319613925,1710889874734,-500.0,0.00031506,2]
[319613926,1710889874744,-500.0,0.00031506,2]
[319613927,1710889874753,-500.0,0.00031506,2]
[319613928,1710889874763,-1734.35,0.00031506,2]
[319613929,1710889874773,-500.0,0.00031506,2]
[319613930,1710889874782,-1362.64,0.00031506,2]
[319613931,1710889874791,-500.0,0.00031506,2]
[319613932,1710889874801,-500.0,0.00031506,2]
[319613933,1710889874811,-500.0,0.00031506,2]
[319613934,1710889874820,-500.0,0.00031506,2]
[319613935,1710889874831,-500.0,0.00031506,2]
[319613936,1710889874841,-522.34062348,0.00031506,2]
[319613937,1710889874852,-799.5,0.00031506,2]
[319613938,1710889874861,-500.0,0.00031506,2]
[319613939,1710889874871,-500.0,0.00031506,2]
[319613940,1710889874882,-500.0,0.00031506,2]
[319613941,1710889874894,-500.0,0.00031506,2]
[319613942,1710889874903,-506.51,0.00031506,2]
[319613943,1710889874914,-500.0,0.00031506,2]
[319613944,1710889874928,-311.65851842,0.00031506,2]
[319613945,1710889874943,-500.0,0.00031506,2]
[319613946,1710889874957,-568.5442239,0.00031506,2]
[319613947,1710889874978,-962.3,0.00031506,2]
[319613948,1710889874990,-500.0,0.00031506,2]
[319613949,1710889875004,-608.84538019,0.00031506,2]
[319613950,1710889875019,-500.0,0.00031506,2]
[319613951,1710889875033,-301.42500971,0.00031506,2]
[319613952,1710889875047,-500.0,0.00031506,2]
[319613953,1710889875061,-500.0,0.00031506,2]
[319613954,1710889875074,-500.0,0.00031506,2]
[319613955,1710889875086,-500.0,0.00031506,2]
[319613956,1710889875097,-500.0,0.00031506,2]
[319613957,1710889875110,-500.0,0.00031506,2]
[319613958,1710889875122,-738.08,0.00031506,2]
[319613959,1710889875135,-500.0,0.00031506,2]
[319613960,1710889875147,-500.0,0.00031506,2]
[319613961,1710889875160,-500.0,0.00031506,2]
[319613962,1710889875172,-500.0,0.00031506,2]
[319613963,1710889875182,-500.0,0.00031506,2]
[319613964,1710889875193,-500.0,0.00031506,2]
[319613965,1710889875212,-3065.96,0.00031506,2]
[319613966,1710889875226,-500.0,0.00031506,2]
[319613967,1710889875241,-527.83,0.00031506,2]
[319613968,1710889875253,-1402.94,0.00031506,2]
[319613969,1710889875266,-863.28,0.00031506,2]
[319613970,1710889875277,-500.0,0.00031506,2]
[319613971,1710889875291,-316.87898464,0.00031506,2]
[319613972,1710889875304,-509.57,0.00031506,2]
[319613973,1710889875317,-816.49,0.00031506,2]
[319613974,1710889875330,-500.0,0.00031506,2]
[319613975,1710889875344,-546.0,0.00031506,2]
[319613976,1710889875357,-500.0,0.00031506,2]
[319613977,1710889875369,-1467.71,0.00031506,2]
[319613978,1710889875381,-500.0,0.00031506,2]
[319613979,1710889875391,-364.27255753,0.00031506,2]
[319613980,1710889875402,-10090.18,0.00031506,2]
[319613981,1710889875415,-500.0,0.00031506,2]
[319613982,1710889875427,-500.0,0.00031506,2]
[319613983,1710889875440,-500.0,0.00031506,2]
[319613984,1710889875454,-500.0,0.00031506,2]
[319613985,1710889875467,-2448.69,0.00031506,2]
[319613986,1710889875478,-500.0,0.00031506,2]
[319613987,1710889875489,-500.0,0.00031506,2]
[319613988,1710889875503,-500.0,0.00031506,2]
[319613989,1710889875515,-1832.0,0.00031506,2]
[319613990,1710889875527,-1702.82,0.00031506,2]
[319613991,1710889875538,-500.0,0.00031506,2]
[319613992,1710889875550,-450.60770629,0.00031506,2]
[319613993,1710889875561,-500.0,0.00031506,2]
[319613994,1710889875573,-576.68,0.00031506,2]
[319613995,1710889875586,-500.0,0.00031506,2]
[319613996,1710889875597,-550.72,0.00031506,2]
[319613997,1710889875609,-1410.4,0.00031506,2]
[319613998,1710889875621,-500.0,0.00031506,2]
[319613999,1710889875633,-566.59,0.00031506,2]
[319614000,1710889875645,-1698.2,0.00031506,2]
[319614001,1710889875656,-618.74,0.00031506,2]
[319614002,1710889875668,-500.0,0.00031506,2]
[319614003,1710889875680,-500.0,0.00031506,2]
[319614004,1710889875691,-500.0,0.00031506,2]
[319614005,1710889875702,-357.50535112,0.00031506,2]
[319614006,1710889875717,-500.0,0.00031506,2]
[319614007,1710889875729,-500.0,0.00031506,2]
[319614008,1710889875741,-516.46,0.00031506,2]
[319614009,1710889875752,-500.0,0.00031506,2]
[319614010,1710889875763,-500.0,0.00031506,2]
[319614011,1710889875774,-4353.24,0.00031506,2]
[319614012,1710889875787,-500.0,0.00031506,2]
[319614013,1710889875798,-500.0,0.00031506,2]
[319614014,1710889875809,-7073.81,0.00031506,2]
[319614015,1710889875821,-500.0,0.00031506,2]
[319614016,1710889875835,-522.69,0.00031506,2]
[319614017,1710889875847,-500.0,0.00031506,2]
[319614018,1710889875859,-500.0,0.00031506,2]
[319614019,1710889875871,-928.93,0.00031506,2]
[319614020,1710889875886,-811.39,0.00031506,2]
[319614021,1710889875898,-1038.54,0.00031506,2]
[319614022,1710889875909,-4631.2,0.00031506,2]
[319614023,1710889875920,-500.0,0.00031506,2]
[319614024,1710889875932,-1456.54,0.00031506,2]
[319614025,1710889875944,-500.0,0.00031506,2]
[319614026,1710889875956,-871.05,0.00031506,2]
[319614027,1710889875972,-1056.59,0.00031506,2]
[319614028,1710889875985,-537.22,0.00031506,2]
[319614029,1710889875997,-500.0,0.00031506,2]
[319614030,1710889876009,-500.0,0.00031506,2]
[319614031,1710889876021,-500.0,0.00031506,2]
[319614032,1710889876034,-524.13,0.00031506,2]
[319614033,1710889876044,-2348.88,0.00031506,2]
[319614034,1710889876057,-524.03984955,0.00031506,2]
[319614035,1710889876068,-515.48,0.00031506,2]
[319614036,1710889876080,-500.0,0.00031506,2]
[319614037,1710889876093,-360.74681421,0.00031506,2]
[319614038,1710889876104,-500.0,0.00031506,2]
[319614039,1710889876116,-853.27,0.00031506,2]
[319614040,1710889876128,-1115.49,0.00031506,2]
[319614041,1710889876139,-971.85,0.00031506,2]
[319614042,1710889876151,-543.38,0.00031506,2]
[319614043,1710889876164,-500.0,0.00031506,2]
[319614044,1710889876176,-495.48484373,0.00031506,2]
[319614045,1710889876188,-2831.03,0.00031506,2]
[319614046,1710889876200,-1184.24,0.00031506,2]
[319614047,1710889876214,-979.33,0.00031506,2]
[319614048,1710889876226,-1727.5,0.00031506,2]
[319614049,1710889876238,-500.0,0.00031506,2]
[319614050,1710889876250,-500.0,0.00031506,2]
[319614051,1710889876261,-500.0,0.00031506,2]
[319614052,1710889876272,-500.0,0.00031506,2]
[319614053,1710889876284,-522.77,0.00031506,2]
[319614054,1710889876295,-500.0,0.00031506,2]
[319614055,1710889876306,-766.46,0.00031506,2]
[319614056,1710889876317,-690.56,0.00031506,2]
[319614057,1710889876328,-500.0,0.00031506,2]
[319614058,1710889876340,-4803.55,0.00031506,2]
[319614059,1710889876351,-817.88,0.00031506,2]
[319614060,1710889876362,-500.0,0.00031506,2]
[319614061,1710889876374,-556.39,0.00031506,2]
[319614062,1710889876384,-4845.95,0.00031506,2]
[319614063,1710889876396,-500.0,0.00031506,2]
[319614064,1710889876407,-500.0,0.00031506,2]
[319614065,1710889876419,-500.0,0.00031506,2]
[319614066,1710889876430,-500.0,0.00031506,2]
[319614067,1710889876442,-34103.85,0.00031506,2]
[319614068,1710889876454,-1080.43,0.00031506,2]
[319614069,1710889876469,-1942.23,0.00031506,2]
[319614070,1710889876480,-3482.12,0.00031506,2]
[319614071,1710889876491,-1812.24,0.00031506,2]
[319614072,1710889876503,-670.6,0.00031506,2]
[319614073,1710889876514,-500.0,0.00031506,2]
[319614074,1710889876526,-600.36,0.00031506,2]
[319614075,1710889876538,-500.0,0.00031506,2]
[319614076,1710889876551,-500.0,0.00031506,2]
[319614077,1710889876563,-500.0,0.00031506,2]
[319614078,1710889876575,-241.02,0.00031506,2]
[319614079,1710889876587,-500.0,0.00031506,2]
[319614080,1710889876600,-500.0,0.00031506,2]
[319614081,1710889876612,-862.6,0.00031506,2]
[319614082,1710889876625,-4330.62,0.00031506,2]
[319614083,1710889876637,-876.81,0.00031506,2]
[319614084,1710889876649,-3516.45,0.00031506,2]
[319614085,1710889876661,-628.68,0.00031506,2]
[319614086,1710889876673,-500.0,0.00031506,2]
[319614087,1710889876685,-728.13,0.00031506,2]
[319614088,1710889876697,-500.0,0.00031506,2]
[319614089,1710889876710,-500.0,0.00031506,2]
[319614090,1710889876721,-898.81,0.00031506,2]
[319614091,1710889876733,-12216.87,0.00031506,2]
[319614092,1710889876745,-518.77,0.00031506,2]
[319614093,1710889876757,-500.0,0.00031506,2]
[319614094,1710889876773,-2145.43,0.00031506,2]
[319614095,1710889876785,-500.0,0.00031506,2]
[319614096,1710889876797,-535.35,0.00031506,2]
[319614097,1710889876809,-500.0,0.00031506,2]
[319614098,1710889876820,-2312.93,0.00031506,2]
[319614099,1710889876834,-500.0,0.00031506,2]
[319614100,1710889876846,-500.0,0.00031506,2]
[319614101,1710889876857,-500.0,0.00031506,2]
[319614102,1710889876870,-555.13,0.00031506,2]
[319614103,1710889876886,-500.0,0.00031506,2]
[319614104,1710889876898,-500.0,0.00031506,2]
[319614105,1710889876910,-500.0,0.00031506,2]
[319614106,1710889876923,-500.0,0.00031506,2]
[319614107,1710889876935,-901.75,0.00031506,2]
[319614108,1710889876948,-376.44997912,0.00031506,2]
[319614109,1710889876963,-2237.89,0.00031506,2]
[319614110,1710889876975,-500.0,0.00031506,2]
[319614111,1710889876986,-500.0,0.00031506,2]
[319614112,1710889876997,-1754.94,0.00031506,2]
[319614113,1710889877009,-500.0,0.00031506,2]
[319614114,1710889877021,-2222.53,0.00031506,2]
[319614115,1710889877032,-693.88,0.00031506,2]
[319614116,1710889877044,-500.0,0.00031506,2]
[319614117,1710889877057,-500.0,0.00031506,2]
[319614118,1710889877069,-800.0,0.00031526,8]
[319614119,1710889877081,-207.0,0.0003157,2]
[319614120,1710889877093,-255.93775213,0.0003168,5]
[319614121,1710889877105,-500.0,0.0003178,2]
[319614122,1710889877117,-808.57,0.0003178,2]
[319614123,1710889877129,-500.0,0.0003178,2]
[319614124,1710889877140,-500.0,0.0003178,2]
[319614125,1710889877151,-500.0,0.0003178,2]
[319614126,1710889877162,-739.62,0.0003178,2]
[319614127,1710889877174,-500.0,0.0003178,2]
[319614128,1710889877185,-500.0,0.0003178,2]
[319614129,1710889877197,-770.01,0.0003178,2]
[319614130,1710889877208,-500.002225,0.0003178,2]
[319614131,1710889877224,-706.97,0.0003178,2]
[319614132,1710889877237,-500.0,0.0003178,2]
[319614133,1710889877248,-500.0,0.0003178,2]
[319614134,1710889877260,-500.0,0.0003178,2]
[319614135,1710889877271,-1912.51,0.0003178,2]
[319614136,1710889877283,-259.27184504,0.0003178,2]
[319614137,1710889877294,-500.0,0.0003178,2]
[319614138,1710889877305,-1956.9,0.0003178,2]
[319614139,1710889877317,-500.0,0.0003178,2]
[319614140,1710889877329,-500.0,0.0003178,2]
[319614141,1710889877340,-500.0,0.0003178,2]
[319614142,1710889877352,-500.0,0.0003178,2]
[319614143,1710889877363,-500.0,0.0003178,2]
[319614144,1710889877376,-625.35,0.0003178,2]
[319614145,1710889877389,-500.0,0.0003178,2]
[319614146,1710889877401,-2737.91,0.0003178,2]
[319614147,1710889877414,-500.0,0.0003178,2]
[319614148,1710889877427,-727.13,0.0003178,2]
[319614149,1710889877441,-500.0,0.0003178,2]
[319614150,1710889877454,-500.0,0.0003178,2]
[319614151,1710889877473,-500.0,0.0003178,2]
[319614152,1710889877486,-349.66288048,0.0003178,2]
[319614153,1710889877500,-500.0,0.0003178,2]
[319614154,1710889877513,-969.84,0.0003178,2]
[319614155,1710889877527,-500.0,0.0003178,2]
[319614156,1710889877538,-577.03993489,0.0003178,2]
[319614157,1710889877548,-1547.97,0.0003178,2]
[319614158,1710889877559,-500.0,0.0003178,2]
[319614159,1710889877570,-500.0,0.0003178,2]
[319614160,1710889877903,-500.0,0.0003178,2]
[319614161,1710889877924,-500.0,0.0003178,2]
[319614162,1710889877949,-500.0,0.0003178,2]
[319614163,1710889877973,-500.0,0.0003178,2]
[319614164,1710889877985,-500.0,0.0003178,2]
[319614165,1710889877995,-500.0,0.0003178,2]
[319614166,1710889878005,-500.0,0.0003178,2]
[319614167,1710889878014,-500.0,0.0003178,2]
[319614168,1710889878024,-500.0,0.0003178,2]
[319614169,1710889878033,-233.77427621,0.0003178,2]
[319614170,1710889878043,-771.88,0.0003178,2]
[319614171,1710889878053,-313.50641362,0.0003178,2]
[319614172,1710889878063,-500.0,0.0003178,2]
[319614173,1710889878072,-500.0,0.0003178,2]
[319614174,1710889878082,-500.0,0.0003178,2]
[319614175,1710889878091,-499.35351802,0.0003178,2]
[319614176,1710889878101,-488.15287864,0.0003178,2]
[319614177,1710889878110,-500.0,0.0003178,2]
[319614178,1710889878120,-500.0,0.0003178,2]
[319614179,1710889878129,-1734.35,0.0003178,2]
[319614180,1710889878139,-500.0,0.0003178,2]
[319614181,1710889878149,-1362.64,0.0003178,2]
[319614182,1710889878159,-500.0,0.0003178,2]
[319614183,1710889878168,-152.05179925,0.0003178,2]
[319614184,1710889878178,-500.0,0.0003178,2]
[319614185,1710889878187,-500.0,0.0003178,2]
[319614186,1710889878197,-500.0,0.0003178,2]
[319614187,1710889878206,-799.5,0.0003178,2]
[319614188,1710889878219,-500.0,0.0003178,2]
[319614189,1710889878228,-500.0,0.0003178,2]
[319614190,1710889878238,-500.0,0.0003178,2]
[319614191,1710889878247,-500.0,0.0003178,2]
[319614192,1710889878256,-506.51,0.0003178,2]
[319614193,1710889878267,-500.0,0.0003178,2]
[319614194,1710889878276,-500.0,0.0003178,2]
[319614195,1710889878286,-962.3,0.0003178,2]
[319614196,1710889878295,-500.0,0.0003178,2]
[319614197,1710889878304,-500.0,0.0003178,2]
[319614198,1710889878313,-500.0,0.0003178,2]
[319614199,1710889878323,-500.0,0.0003178,2]
[319614200,1710889878332,-500.0,0.0003178,2]
[319614201,1710889878342,-500.0,0.0003178,2]
[319614202,1710889878351,-500.0,0.0003178,2]
[319614203,1710889878360,-500.0,0.0003178,2]
[319614204,1710889878369,-738.08,0.0003178,2]
[319614205,1710889878378,-500.0,0.0003178,2]
[319614206,1710889878388,-500.0,0.0003178,2]
[319614207,1710889878397,-500.0,0.0003178,2]
[319614208,1710889878406,-500.0,0.0003178,2]
[319614209,1710889878416,-500.0,0.0003178,2]
[319614210,1710889878426,-500.0,0.0003178,2]
[319614211,1710889878436,-3065.96,0.0003178,2]
[319614212,1710889878445,-500.0,0.0003178,2]
[319614213,1710889878455,-527.83,0.0003178,2]
[319614214,1710889878467,-1402.94,0.0003178,2]
[319614215,1710889878477,-863.28,0.0003178,2]
[319614216,1710889878486,-500.0,0.0003178,2]
[319614217,1710889878496,-816.49,0.0003178,2]
[319614218,1710889878506,-509.57,0.0003178,2]
[319614219,1710889878515,-500.0,0.0003178,2]
[319614220,1710889878525,-546.0,0.0003178,2]
[319614221,1710889878535,-500.0,0.0003178,2]
[319614222,1710889878545,-1467.71,0.0003178,2]
[319614223,1710889878554,-500.0,0.0003178,2]
[319614224,1710889878564,-10090.18,0.0003178,2]
[319614225,1710889878574,-500.0,0.0003178,2]
[319614226,1710889878583,-500.0,0.0003178,2]
[319614227,1710889878593,-500.0,0.0003178,2]
[319614228,1710889878603,-500.0,0.0003178,2]
[319614229,1710889878612,-2448.69,0.0003178,2]
[319614230,1710889878622,-500.0,0.0003178,2]
[319614231,1710889878631,-500.0,0.0003178,2]
[319614232,1710889878641,-500.0,0.0003178,2]
[319614233,1710889878651,-1832.0,0.0003178,2]
[319614234,1710889878660,-1702.82,0.0003178,2]
[319614235,1710889878670,-500.0,0.0003178,2]
[319614236,1710889878680,-500.0,0.0003178,2]
[319614237,1710889878689,-576.68,0.0003178,2]
[319614238,1710889878699,-500.0,0.0003178,2]
[319614239,1710889878708,-550.72,0.0003178,2]
[319614240,1710889878721,-1410.4,0.0003178,2]
[319614241,1710889878730,-500.0,0.0003178,2]
[319614242,1710889878739,-566.59,0.0003178,2]
[319614243,1710889878749,-1698.2,0.0003178,2]
[319614244,1710889878758,-500.0,0.0003178,2]
[319614245,1710889878768,-618.74,0.0003178,2]
[319614246,1710889878777,-358.04336115,0.0003178,2]
[319614247,1710889878787,-500.0,0.0003178,2]
[319614248,1710889878796,-500.0,0.0003178,2]
[319614249,1710889878805,-500.0,0.0003178,2]
[319614250,1710889878815,-500.0,0.0003178,2]
[319614251,1710889878825,-500.0,0.0003178,2]
[319614252,1710889878836,-4353.24,0.0003178,2]
[319614253,1710889878847,-500.0,0.0003178,2]
[319614254,1710889878857,-500.0,0.0003178,2]
[319614255,1710889878868,-7073.81,0.0003178,2]
[319614256,1710889878878,-500.0,0.0003178,2]
[319614257,1710889878887,-522.69,0.0003178,2]
[319614258,1710889878897,-500.0,0.0003178,2]
[319614259,1710889878906,-500.0,0.0003178,2]
[319614260,1710889878916,-928.93,0.0003178,2]
[319614261,1710889878926,-811.39,0.0003178,2]
[319614262,1710889878936,-1038.54,0.0003178,2]
[319614263,1710889878947,-4631.2,0.0003178,2]
[319614264,1710889878957,-500.0,0.0003178,2]
[319614265,1710889878974,-1456.54,0.0003178,2]
[319614266,1710889878983,-213.22,0.0003178,2]
[319614267,1710889878992,-871.05,0.0003178,2]
[319614268,1710889879000,-1056.59,0.0003178,2]
[319614269,1710889879009,-537.22,0.0003178,2]
[319614270,1710889879017,-500.0,0.0003178,2]
[319614271,1710889879027,-500.0,0.0003178,2]
[319614272,1710889879036,-500.0,0.0003178,2]
[319614273,1710889879045,-524.13,0.0003178,2]
[319614274,1710889879054,-2348.88,0.0003178,2]
[319614275,1710889879063,-515.48,0.0003178,2]
[319614276,1710889879073,-500.0,0.0003178,2]
[319614277,1710889879082,-500.0,0.0003178,2]
[319614278,1710889879092,-853.27,0.0003178,2]
[319614279,1710889879102,-1115.49,0.0003178,2]
[319614280,1710889879112,-971.85,0.0003178,2]
[319614281,1710889879122,-543.38,0.0003178,2]
[319614282,1710889879132,-567.42055054,0.0003178,2]
[319614283,1710889879141,-2831.03,0.0003178,2]
[319614284,1710889879151,-1184.24,0.0003178,2]
[319614285,1710889879161,-979.33,0.0003178,2]
[319614286,1710889879170,-1727.5,0.0003178,2]
[319614287,1710889879180,-500.0,0.0003178,2]
[319614288,1710889879190,-500.0,0.0003178,2]
[319614289,1710889879199,-296.76319575,0.0003178,2]
[319614290,1710889879208,-500.0,0.0003178,2]
[319614291,1710889879226,-500.0,0.0003178,2]
[319614292,1710889879235,-522.77,0.0003178,2]
[319614293,1710889879244,-766.46,0.0003178,2]
[319614294,1710889879253,-690.56,0.0003178,2]
[319614295,1710889879263,-500.0,0.0003178,2]
[319614296,1710889879272,-4803.55,0.0003178,2]
[319614297,1710889879282,-500.0,0.0003178,2]
[319614298,1710889879292,-817.88,0.0003178,2]
[319614299,1710889879301,-556.39,0.0003178,2]
[319614300,1710889879310,-4845.95,0.0003178,2]
[319614301,1710889879320,-500.0,0.0003178,2]
[319614302,1710889879330,-500.0,0.0003178,2]
[319614303,1710889879339,-500.0,0.0003178,2]
[319614304,1710889879349,-500.0,0.0003178,2]
[319614305,1710889879358,-34103.85,0.0003178,2]
[319614306,1710889879368,-1080.43,0.0003178,2]
[319614307,1710889879378,-1942.23,0.0003178,2]
[319614308,1710889879388,-3482.12,0.0003178,2]
[319614309,1710889879397,-1812.24,0.0003178,2]
[319614310,1710889879407,-670.6,0.0003178,2]
[319614311,1710889879417,-500.0,0.0003178,2]
[319614312,1710889879426,-600.36,0.0003178,2]
[319614313,1710889879436,-500.0,0.0003178,2]
[319614314,1710889879446,-500.0,0.0003178,2]
[319614315,1710889879456,-500.0,0.0003178,2]
[319614316,1710889879469,-500.0,0.0003178,2]
[319614317,1710889879480,-500.0,0.0003178,2]
[319614318,1710889879490,-862.6,0.0003178,2]
[319614319,1710889879499,-4330.62,0.0003178,2]
[319614320,1710889879509,-876.81,0.0003178,2]
[319614321,1710889879518,-3516.45,0.0003178,2]
[319614322,1710889879528,-628.68,0.0003178,2]
[319614323,1710889879538,-500.0,0.0003178,2]
[319614324,1710889879548,-728.13,0.0003178,2]
[319614325,1710889879558,-289.39435504,0.0003178,2]
[319614326,1710889879568,-500.0,0.0003178,2]
[319614327,1710889879578,-898.81,0.0003178,2]
[319614328,1710889879587,-12216.87,0.0003178,2]
[319614329,1710889879597,-518.77,0.0003178,2]
[319614330,1710889879606,-500.0,0.0003178,2]
[319614331,1710889879616,-2145.43,0.0003178,2]
[319614332,1710889879626,-500.0,0.0003178,2]
[319614333,1710889879635,-535.35,0.0003178,2]
[319614334,1710889879645,-227.87638833,0.0003178,2]
[319614335,1710889879655,-2312.93,0.0003178,2]
[319614336,1710889879665,-409.30723512,0.0003178,2]
[319614337,1710889879674,-500.0,0.0003178,2]
[319614338,1710889879684,-500.0,0.0003178,2]
[319614339,1710889879693,-555.13,0.0003178,2]
[319614340,1710889879703,-500.0,0.0003178,2]
[319614341,1710889879714,-472.77555883,0.0003178,2]
[319614342,1710889879723,-190.02343737,0.0003178,2]
[319614343,1710889879733,-500.0,0.0003178,2]
[319614344,1710889879742,-901.75,0.0003178,2]
[319614345,1710889879751,-2237.89,0.0003178,2]
[319614346,1710889879760,-500.0,0.0003178,2]
[319614347,1710889879769,-500.0,0.0003178,2]
[319614348,1710889879779,-1754.94,0.0003178,2]
[319614349,1710889879789,-500.0,0.0003178,2]
[319614350,1710889879798,-2222.53,0.0003178,2]
[319614351,1710889879807,-693.88,0.0003178,2]
[319614352,1710889879817,-500.0,0.0003178,2]
[319614353,1710889879826,-500.0,0.0003178,2]
[319614354,1710889879838,-269.0,0.0003199,2]
[319614355,1710889879847,-365.67,0.00032003,2]
[319614356,1710889879857,-500.0,0.00032054,2]
[319614357,1710889879866,-808.57,0.00032054,2]
[319614358,1710889879877,-530.64411076,0.00032054,2]
[319614359,1710889879886,-507.04210122,0.00032054,2]
[319614360,1710889879896,-500.0,0.00032054,2]
[319614361,1710889879905,-739.62,0.00032054,2]
[319614362,1710889879917,-500.0,0.00032054,2]
[319614363,1710889879927,-551.61931144,0.00032054,2]
[319614364,1710889879937,-770.01,0.00032054,2]
[319614365,1710889879948,-706.97,0.00032054,2]
[319614366,1710889879958,-500.0,0.00032054,2]
[319614367,1710889879972,-500.0,0.00032054,2]
[319614368,1710889879981,-500.0,0.00032054,2]
[319614369,1710889879991,-1912.51,0.00032054,2]
[319614370,1710889880001,-500.0,0.00032054,2]
[319614371,1710889880011,-1956.9,0.00032054,2]